[Event "Titled Tuesday Blitz March 28 Late 2023"]
[White "a-z30"]
[Black "Wu, Sibo"]
[BlackFideId "8606048"]
[WhiteElo "2502"]
[BlackElo "2278"]
[Result "1/2-1/2"]
[Round "05"]
[TimeControl "180+2"]
[Date "2023.03.28"]
[WhiteClock "0:00:07"]
[BlackClock "0:00:13"]

1. d3 {[%clk 0:03:00]}  d5 {[%clk 0:02:59]} 2. Nf3 {[%clk 0:03:01]}  Nf6 {[%clk 0:03:00]} 3. g3 {[%clk 0:03:01]}  c6 {[%clk 0:02:55]} 4. Bg2 {[%clk 0:03:02]}  h5 {[%clk 0:02:56]} 5. Bg5 {[%clk 0:02:49]}  Bf5 {[%clk 0:02:48]} 6. O-O {[%clk 0:02:47]}  Nbd7 {[%clk 0:02:48]} 7. c4 {[%clk 0:02:46]}  e6 {[%clk 0:02:47]} 8. cxd5 {[%clk 0:02:45]}  cxd5 {[%clk 0:02:43]} 9. e4 {[%clk 0:02:45]}  dxe4 {[%clk 0:02:39]} 10. Nd4 {[%clk 0:02:19]}  Nc5 {[%clk 0:02:11]} 11. dxe4 {[%clk 0:02:13]}  Bxe4 {[%clk 0:02:04]} 12. Bxf6 {[%clk 0:01:56]}  gxf6 {[%clk 0:01:52]} 13. Bxe4 {[%clk 0:01:52]}  Nxe4 {[%clk 0:01:52]} 14. Qa4+ {[%clk 0:01:23]}  Qd7 {[%clk 0:01:52]} 15. Nb5 {[%clk 0:01:20]}  Rc8 {[%clk 0:01:47]} 16. Qxe4 {[%clk 0:00:59]}  Qxb5 {[%clk 0:01:46]} 17. Nc3 {[%clk 0:00:57]}  Qc6 {[%clk 0:01:41]} 18. Qf4 {[%clk 0:00:50]}  Bg7 {[%clk 0:01:31]} 19. Ne4 {[%clk 0:00:47]}  e5 {[%clk 0:01:19]} 20. Qf5 {[%clk 0:00:39]}  O-O {[%clk 0:01:02]} 21. Rac1 {[%clk 0:00:30]}  Qe6 {[%clk 0:00:41]} 22. Qxh5 {[%clk 0:00:27]}  f5 {[%clk 0:00:38]} 23. Nc5 {[%clk 0:00:19]}  Qg6 {[%clk 0:00:28]} 24. Qxg6 {[%clk 0:00:18]}  fxg6 {[%clk 0:00:28]} 25. Nxb7 {[%clk 0:00:19]}  Rb8 {[%clk 0:00:26]} 26. Rc7 {[%clk 0:00:18]}  Rf7 {[%clk 0:00:23]} 27. Rxf7 {[%clk 0:00:13]}  Kxf7 {[%clk 0:00:24]} 28. Nd6+ {[%clk 0:00:14]}  Ke6 {[%clk 0:00:24]} 29. Nc4 {[%clk 0:00:15]}  e4 {[%clk 0:00:22]} 30. b3 {[%clk 0:00:16]}  Rd8 {[%clk 0:00:21]} 31. Rc1 {[%clk 0:00:15]}  Bd4 {[%clk 0:00:20]} 32. Rc2 {[%clk 0:00:14]}  g5 {[%clk 0:00:20]} 33. h3 {[%clk 0:00:13]}  f4 {[%clk 0:00:20]} 34. Kg2 {[%clk 0:00:09]}  f3+ {[%clk 0:00:20]} 35. Kf1 {[%clk 0:00:09]}  Rh8 {[%clk 0:00:18]} 36. Rd2 {[%clk 0:00:06]}  Bc5 {[%clk 0:00:16]} 37. h4 {[%clk 0:00:05]}  gxh4 {[%clk 0:00:16]} 38. gxh4 {[%clk 0:00:06]}  Rxh4 {[%clk 0:00:16]} 39. Kg1 {[%clk 0:00:07]}  Rg4+ {[%clk 0:00:16]} 40. Kf1 {[%clk 0:00:07]}  Rh4 {[%clk 0:00:15]} 41. Kg1 {[%clk 0:00:07]}  Rg4+ {[%clk 0:00:13]} 42. Kf1 {[%clk 0:00:07]}  Rh4 {[%clk 0:00:13]} 1/2-1/2


[Site "https://www.chess.com"]

[Event "Titled Tuesday Blitz March 28 Late 2023"]
[White "koncheto"]
[Black "Fernandez Sanchez, Mario Andres"]
[BlackFideId "6501621"]
[WhiteElo "2474"]
[BlackElo "2050"]
[Result "1/2-1/2"]
[Round "05"]
[TimeControl "180+2"]
[Date "2023.03.28"]
[WhiteClock "0:00:54"]
[BlackClock "0:01:21"]

1. e4 {[%clk 0:02:57]}  c5 {[%clk 0:02:59]} 2. Nf3 {[%clk 0:02:56]}  Nc6 {[%clk 0:03:00]} 3. d4 {[%clk 0:02:56]}  cxd4 {[%clk 0:03:01]} 4. Nxd4 {[%clk 0:02:57]}  g6 {[%clk 0:03:01]} 5. c4 {[%clk 0:02:57]}  Bg7 {[%clk 0:03:00]} 6. Be3 {[%clk 0:02:58]}  Nf6 {[%clk 0:03:00]} 7. Nc3 {[%clk 0:02:58]}  O-O {[%clk 0:02:59]} 8. Be2 {[%clk 0:02:58]}  d6 {[%clk 0:02:59]} 9. O-O {[%clk 0:02:58]}  Bd7 {[%clk 0:03:00]} 10. Nc2 {[%clk 0:02:57]}  a6 {[%clk 0:02:59]} 11. Qd2 {[%clk 0:02:57]}  Rc8 {[%clk 0:02:51]} 12. Rac1 {[%clk 0:02:57]}  Be6 {[%clk 0:02:49]} 13. b3 {[%clk 0:02:57]}  Nd7 {[%clk 0:02:44]} 14. Rfd1 {[%clk 0:02:54]}  Re8 {[%clk 0:02:41]} 15. f4 {[%clk 0:02:41]}  Qa5 {[%clk 0:02:40]} 16. Nd4 {[%clk 0:02:29]}  Nxd4 {[%clk 0:02:38]} 17. Bxd4 {[%clk 0:02:30]}  Bxd4+ {[%clk 0:02:39]} 18. Qxd4 {[%clk 0:02:30]}  Qc5 {[%clk 0:02:39]} 19. Kf2 {[%clk 0:02:30]}  a5 {[%clk 0:02:38]} 20. Qxc5 {[%clk 0:02:27]}  Nxc5 {[%clk 0:02:37]} 21. Ke3 {[%clk 0:02:28]}  f5 {[%clk 0:02:29]} 22. Bf3 {[%clk 0:02:11]}  Kf7 {[%clk 0:02:25]} 23. h4 {[%clk 0:02:00]}  Kf6 {[%clk 0:02:24]} 24. g3 {[%clk 0:01:56]}  b6 {[%clk 0:02:21]} 25. Ne2 {[%clk 0:01:49]}  fxe4 {[%clk 0:02:16]} 26. Bxe4 {[%clk 0:01:46]}  Nxe4 {[%clk 0:02:14]} 27. Kxe4 {[%clk 0:01:47]}  Bg4 {[%clk 0:02:15]} 28. Rd2 {[%clk 0:01:45]}  Bxe2 {[%clk 0:02:13]} 29. Rxe2 {[%clk 0:01:45]}  Rc5 {[%clk 0:02:08]} 30. Rce1 {[%clk 0:01:37]}  e5 {[%clk 0:01:59]} 31. Kf3 {[%clk 0:01:27]}  Rd8 {[%clk 0:01:59]} 32. g4 {[%clk 0:01:22]}  h6 {[%clk 0:01:52]} 33. Rd1 {[%clk 0:01:07]}  exf4 {[%clk 0:01:33]} 34. Kxf4 {[%clk 0:01:04]}  b5 {[%clk 0:01:33]} 35. Rd4 {[%clk 0:00:57]}  g5+ {[%clk 0:01:30]} 36. hxg5+ {[%clk 0:00:55]}  hxg5+ {[%clk 0:01:31]} 37. Kg3 {[%clk 0:00:55]}  bxc4 {[%clk 0:01:28]} 38. bxc4 {[%clk 0:00:54]}  d5 {[%clk 0:01:21]} 1/2-1/2


[Site "https://www.chess.com"]

[Event "Titled Tuesday Blitz March 28 Late 2023"]
[White "Quinones Garcia, Santiago"]
[Black "Bullen, Alex"]
[WhiteFideId "4408497"]
[BlackFideId "1801627"]
[WhiteElo "2263"]
[BlackElo "2088"]
[Result "0-1"]
[Round "05"]
[TimeControl "180+2"]
[Date "2023.03.28"]
[WhiteClock "0:00:01"]
[BlackClock "0:00:17"]

1. d4 {[%clk 0:02:55]}  d5 {[%clk 0:02:58]} 2. c4 {[%clk 0:02:56]}  e6 {[%clk 0:02:59]} 3. Nc3 {[%clk 0:02:54]}  h6 {[%clk 0:02:57]} 4. Nf3 {[%clk 0:02:53]}  Nf6 {[%clk 0:02:57]} 5. cxd5 {[%clk 0:02:53]}  exd5 {[%clk 0:02:57]} 6. Bf4 {[%clk 0:02:53]}  Bd6 {[%clk 0:02:57]} 7. Bxd6 {[%clk 0:02:52]}  Qxd6 {[%clk 0:02:58]} 8. e3 {[%clk 0:02:53]}  O-O {[%clk 0:02:57]} 9. Bd3 {[%clk 0:02:53]}  c6 {[%clk 0:02:48]} 10. h3 {[%clk 0:02:53]}  Re8 {[%clk 0:02:45]} 11. Qc2 {[%clk 0:02:52]}  Nh5 {[%clk 0:02:40]} 12. O-O {[%clk 0:02:48]}  Nd7 {[%clk 0:02:33]} 13. Rfb1 {[%clk 0:02:48]}  a5 {[%clk 0:02:31]} 14. a3 {[%clk 0:02:48]}  Nb6 {[%clk 0:02:27]} 15. Ra2 {[%clk 0:02:23]}  Be6 {[%clk 0:02:26]} 16. b4 {[%clk 0:02:20]}  axb4 {[%clk 0:02:24]} 17. axb4 {[%clk 0:02:21]}  Nf6 {[%clk 0:02:15]} 18. b5 {[%clk 0:02:17]}  c5 {[%clk 0:02:15]} 19. dxc5 {[%clk 0:01:38]}  Qxc5 {[%clk 0:02:16]} 20. Nd4 {[%clk 0:01:38]}  Rxa2 {[%clk 0:01:55]} 21. Nxa2 {[%clk 0:01:38]}  Qxc2 {[%clk 0:01:53]} 22. Bxc2 {[%clk 0:01:39]}  Ne4 {[%clk 0:01:50]} 23. Bd3 {[%clk 0:01:27]}  Nd2 {[%clk 0:01:38]} 24. Rc1 {[%clk 0:01:21]}  Ndc4 {[%clk 0:01:38]} 25. Nc3 {[%clk 0:01:04]}  Rc8 {[%clk 0:01:31]} 26. Nce2 {[%clk 0:01:02]}  Bd7 {[%clk 0:01:18]} 27. Nf4 {[%clk 0:00:56]}  Ne5 {[%clk 0:01:05]} 28. Rxc8+ {[%clk 0:00:52]}  Bxc8 {[%clk 0:01:06]} 29. Be2 {[%clk 0:00:51]}  Bd7 {[%clk 0:00:57]} 30. Kf1 {[%clk 0:00:46]}  g5 {[%clk 0:00:55]} 31. Nh5 {[%clk 0:00:40]}  Kf8 {[%clk 0:00:51]} 32. Ke1 {[%clk 0:00:39]}  Ke7 {[%clk 0:00:50]} 33. Kd2 {[%clk 0:00:38]}  Kd6 {[%clk 0:00:49]} 34. Kc3 {[%clk 0:00:37]}  Na4+ {[%clk 0:00:46]} 35. Kb4 {[%clk 0:00:36]}  Nb2 {[%clk 0:00:39]} 36. f4 {[%clk 0:00:23]}  gxf4 {[%clk 0:00:35]} 37. exf4 {[%clk 0:00:24]}  Nec4 {[%clk 0:00:32]} 38. Ng3 {[%clk 0:00:14]}  Ne3 {[%clk 0:00:30]} 39. Bf3 {[%clk 0:00:04]}  b6 {[%clk 0:00:27]} 40. Kc3 {[%clk 0:00:03]}  Na4+ {[%clk 0:00:26]} 41. Kb4 {[%clk 0:00:03]}  Nc5 {[%clk 0:00:26]} 42. Nh5 {[%clk 0:00:02]}  Nd3+ {[%clk 0:00:24]} 43. Kc3 {[%clk 0:00:02]}  Nc5 {[%clk 0:00:23]} 44. g3 {[%clk 0:00:02]}  Na4+ {[%clk 0:00:21]} 45. Kb4 {[%clk 0:00:02]}  Nb2 {[%clk 0:00:20]} 46. Ng7 {[%clk 0:00:02]}  Nd3+ {[%clk 0:00:19]} 47. Kc3 {[%clk 0:00:02]}  Ne1 {[%clk 0:00:19]} 48. Be2 {[%clk 0:00:01]}  N1g2 {[%clk 0:00:19]} 49. Kb4 {[%clk 0:00:01]}  Bxh3 {[%clk 0:00:17]} 0-1


[Site "https://www.chess.com"]

[Event "Titled Tuesday Blitz March 28 Late 2023"]
[White "Dardha, Arben"]
[Black "Gasparyan, David"]
[WhiteFideId "4700481"]
[BlackFideId "13311980"]
[WhiteElo "2196"]
[BlackElo "2472"]
[Result "0-1"]
[Round "05"]
[TimeControl "180+2"]
[Date "2023.03.28"]
[WhiteClock "0:00:19"]
[BlackClock "0:00:34"]

1. e4 {[%clk 0:02:57]}  c5 {[%clk 0:02:57]} 2. Nf3 {[%clk 0:02:57]}  Nf6 {[%clk 0:02:56]} 3. e5 {[%clk 0:02:55]}  Nd5 {[%clk 0:02:56]} 4. d4 {[%clk 0:02:56]}  cxd4 {[%clk 0:02:56]} 5. c4 {[%clk 0:02:56]}  Nc7 {[%clk 0:02:53]} 6. Nxd4 {[%clk 0:02:55]}  g6 {[%clk 0:02:53]} 7. f4 {[%clk 0:02:54]}  Nc6 {[%clk 0:02:52]} 8. Nxc6 {[%clk 0:02:53]}  bxc6 {[%clk 0:02:51]} 9. Nc3 {[%clk 0:02:53]}  Ne6 {[%clk 0:02:50]} 10. Bd3 {[%clk 0:02:52]}  Bg7 {[%clk 0:02:50]} 11. O-O {[%clk 0:02:51]}  O-O {[%clk 0:02:41]} 12. Kh1 {[%clk 0:02:51]}  Rb8 {[%clk 0:02:31]} 13. b3 {[%clk 0:02:48]}  d6 {[%clk 0:02:30]} 14. Re1 {[%clk 0:02:27]}  dxe5 {[%clk 0:02:28]} 15. fxe5 {[%clk 0:02:28]}  Qa5 {[%clk 0:02:25]} 16. Bd2 {[%clk 0:02:22]}  Qc7 {[%clk 0:02:11]} 17. Qe2 {[%clk 0:02:16]}  Rd8 {[%clk 0:02:06]} 18. Rad1 {[%clk 0:01:30]}  Nc5 {[%clk 0:01:54]} 19. Bc2 {[%clk 0:01:26]}  Be6 {[%clk 0:01:53]} 20. Bf4 {[%clk 0:01:00]}  Qa5 {[%clk 0:01:45]} 21. Ne4 {[%clk 0:00:56]}  Nxe4 {[%clk 0:01:45]} 22. Bxe4 {[%clk 0:00:55]}  Bxe5 {[%clk 0:01:27]} 23. Bxe5 {[%clk 0:00:49]}  Qxe5 {[%clk 0:01:27]} 24. Rxd8+ {[%clk 0:00:46]}  Rxd8 {[%clk 0:01:26]} 25. h3 {[%clk 0:00:43]}  c5 {[%clk 0:01:19]} 26. Qf2 {[%clk 0:00:40]}  Qd4 {[%clk 0:01:12]} 27. Qf3 {[%clk 0:00:40]}  Qd2 {[%clk 0:01:09]} 28. Re2 {[%clk 0:00:38]}  Qc1+ {[%clk 0:01:09]} 29. Kh2 {[%clk 0:00:38]}  Rd1 {[%clk 0:01:09]} 30. Bd5 {[%clk 0:00:24]}  Rh1+ {[%clk 0:01:06]} 31. Kg3 {[%clk 0:00:24]}  Qg5+ {[%clk 0:01:05]} 32. Kf2 {[%clk 0:00:25]}  Qh4+ {[%clk 0:01:05]} 33. g3 {[%clk 0:00:19]}  Qd4+ {[%clk 0:00:59]} 34. Qe3 {[%clk 0:00:18]}  Rh2+ {[%clk 0:00:56]} 35. Kf3 {[%clk 0:00:18]}  Bxd5+ {[%clk 0:00:44]} 36. cxd5 {[%clk 0:00:19]}  Qxd5+ {[%clk 0:00:43]} 37. Qe4 {[%clk 0:00:20]}  Qh5+ {[%clk 0:00:37]} 38. Qg4 {[%clk 0:00:16]}  Rxe2 {[%clk 0:00:35]} 39. Qxh5 {[%clk 0:00:16]}  gxh5 {[%clk 0:00:35]} 40. Kxe2 {[%clk 0:00:17]}  f5 {[%clk 0:00:32]} 41. Kd3 {[%clk 0:00:18]}  e5 {[%clk 0:00:32]} 42. Kc4 {[%clk 0:00:18]}  h4 {[%clk 0:00:32]} 43. gxh4 {[%clk 0:00:18]}  f4 {[%clk 0:00:33]} 44. b4 {[%clk 0:00:16]}  cxb4 {[%clk 0:00:32]} 45. Kxb4 {[%clk 0:00:14]}  f3 {[%clk 0:00:33]} 46. Kc3 {[%clk 0:00:14]}  e4 {[%clk 0:00:33]} 47. Kd2 {[%clk 0:00:14]}  h5 {[%clk 0:00:34]} 48. Ke3 {[%clk 0:00:15]}  Kf7 {[%clk 0:00:34]} 49. a4 {[%clk 0:00:15]}  Ke6 {[%clk 0:00:34]} 50. a5 {[%clk 0:00:16]}  a6 {[%clk 0:00:35]} 51. Kxe4 {[%clk 0:00:17]}  f2 {[%clk 0:00:35]} 52. Kf4 {[%clk 0:00:17]}  f1=Q+ {[%clk 0:00:36]} 53. Kg5 {[%clk 0:00:18]}  Qg2+ {[%clk 0:00:36]} 54. Kh6 {[%clk 0:00:19]}  Kf7 {[%clk 0:00:34]} 0-1


[Site "https://www.chess.com"]

[Event "Titled Tuesday Blitz March 28 Late 2023"]
[White "Garrido, Denis"]
[Black "Kozin, Yuri"]
[WhiteFideId "601217"]
[BlackFideId "4129920"]
[WhiteElo "2281"]
[BlackElo "2435"]
[Result "1-0"]
[Round "05"]
[TimeControl "180+2"]
[Date "2023.03.28"]
[WhiteClock "0:00:27"]
[BlackClock "0:00:12"]

1. e4 {[%clk 0:03:00]}  c5 {[%clk 0:02:59]} 2. Nf3 {[%clk 0:03:00]}  e6 {[%clk 0:03:00]} 3. d4 {[%clk 0:03:00]}  cxd4 {[%clk 0:03:01]} 4. Nxd4 {[%clk 0:03:00]}  a6 {[%clk 0:03:01]} 5. c4 {[%clk 0:02:58]}  Qc7 {[%clk 0:03:00]} 6. Nc3 {[%clk 0:02:58]}  Nf6 {[%clk 0:03:01]} 7. a3 {[%clk 0:02:58]}  Nxe4 {[%clk 0:03:01]} 8. Nxe4 {[%clk 0:02:57]}  Qe5 {[%clk 0:03:01]} 9. Be2 {[%clk 0:02:42]}  Qxe4 {[%clk 0:03:01]} 10. O-O {[%clk 0:02:42]}  Nc6 {[%clk 0:02:59]} 11. Be3 {[%clk 0:02:37]}  Be7 {[%clk 0:02:52]} 12. Bf3 {[%clk 0:02:36]}  Qg6 {[%clk 0:02:35]} 13. Re1 {[%clk 0:02:12]}  O-O {[%clk 0:02:35]} 14. b4 {[%clk 0:02:11]}  f5 {[%clk 0:02:27]} 15. c5 {[%clk 0:01:57]}  Ne5 {[%clk 0:02:16]} 16. Be2 {[%clk 0:01:58]}  f4 {[%clk 0:02:10]} 17. Bc1 {[%clk 0:01:43]}  a5 {[%clk 0:01:42]} 18. Bb2 {[%clk 0:01:42]}  axb4 {[%clk 0:01:34]} 19. axb4 {[%clk 0:01:35]}  Rxa1 {[%clk 0:01:35]} 20. Bxa1 {[%clk 0:01:30]}  b6 {[%clk 0:01:26]} 21. Nxe6 {[%clk 0:01:12]}  dxe6 {[%clk 0:01:08]} 22. Bxe5 {[%clk 0:01:09]}  bxc5 {[%clk 0:01:08]} 23. b5 {[%clk 0:01:03]}  c4 {[%clk 0:00:43]} 24. Bf3 {[%clk 0:00:54]}  Bf6 {[%clk 0:00:32]} 25. b6 {[%clk 0:00:48]}  Bxe5 {[%clk 0:00:24]} 26. Rxe5 {[%clk 0:00:49]}  Qf7 {[%clk 0:00:19]} 27. h3 {[%clk 0:00:41]}  h6 {[%clk 0:00:16]} 28. Qd4 {[%clk 0:00:39]}  Bb7 {[%clk 0:00:15]} 29. Bxb7 {[%clk 0:00:33]}  Qxb7 {[%clk 0:00:15]} 30. Rxe6 {[%clk 0:00:32]}  c3 {[%clk 0:00:15]} 31. Qc4 {[%clk 0:00:29]}  Rc8 {[%clk 0:00:13]} 32. Rc6+ {[%clk 0:00:28]}  Kh7 {[%clk 0:00:12]} 33. Rxc8 {[%clk 0:00:28]}  c2 {[%clk 0:00:12]} 34. Qxc2+ {[%clk 0:00:27]} 1-0


[Site "https://www.chess.com"]

[Event "Titled Tuesday Blitz March 28 Late 2023"]
[White "Palacio,Igor Da Paz"]
[Black "Buchenau, Frank"]
[WhiteFideId "2121140"]
[BlackFideId "4604350"]
[WhiteElo "2126"]
[BlackElo "2157"]
[Result "0-1"]
[Round "05"]
[TimeControl "180+2"]
[Date "2023.03.28"]
[WhiteClock "0:00:01"]
[BlackClock "0:00:56"]

1. e4 {[%clk 0:03:00]}  e6 {[%clk 0:02:59]} 2. d4 {[%clk 0:02:59]}  d5 {[%clk 0:02:59]} 3. Nd2 {[%clk 0:02:59]}  c5 {[%clk 0:02:58]} 4. c3 {[%clk 0:02:59]}  cxd4 {[%clk 0:02:58]} 5. cxd4 {[%clk 0:02:59]}  dxe4 {[%clk 0:02:57]} 6. Nxe4 {[%clk 0:03:00]}  Nc6 {[%clk 0:02:57]} 7. Nf3 {[%clk 0:02:59]}  Be7 {[%clk 0:02:56]} 8. Bd3 {[%clk 0:02:56]}  Nf6 {[%clk 0:02:56]} 9. O-O {[%clk 0:02:55]}  O-O {[%clk 0:02:55]} 10. Nxf6+ {[%clk 0:02:49]}  Bxf6 {[%clk 0:02:55]} 11. Be3 {[%clk 0:02:48]}  Nb4 {[%clk 0:02:48]} 12. Bb1 {[%clk 0:02:45]}  Bd7 {[%clk 0:02:42]} 13. Ne5 {[%clk 0:02:39]}  Bb5 {[%clk 0:02:38]} 14. Re1 {[%clk 0:02:35]}  Qd5 {[%clk 0:02:24]} 15. a3 {[%clk 0:02:16]}  Bc6 {[%clk 0:02:14]} 16. f3 {[%clk 0:01:55]}  Bxe5 {[%clk 0:02:07]} 17. dxe5 {[%clk 0:01:50]}  Qxd1 {[%clk 0:02:06]} 18. Rxd1 {[%clk 0:01:51]}  Nd5 {[%clk 0:02:05]} 19. Bf2 {[%clk 0:01:45]}  Rfd8 {[%clk 0:02:01]} 20. g3 {[%clk 0:01:33]}  Ne7 {[%clk 0:01:57]} 21. Be4 {[%clk 0:00:41]}  Bxe4 {[%clk 0:01:55]} 22. fxe4 {[%clk 0:00:42]}  Nc6 {[%clk 0:01:54]} 23. Rac1 {[%clk 0:00:22]}  a6 {[%clk 0:01:45]} 24. Bb6 {[%clk 0:00:15]}  Rxd1+ {[%clk 0:01:44]} 25. Rxd1 {[%clk 0:00:16]}  Nxe5 {[%clk 0:01:43]} 26. b3 {[%clk 0:00:11]}  Kf8 {[%clk 0:01:39]} 27. Kf2 {[%clk 0:00:07]}  f6 {[%clk 0:01:34]} 28. h3 {[%clk 0:00:07]}  Ke7 {[%clk 0:01:34]} 29. Ke3 {[%clk 0:00:07]}  Rc8 {[%clk 0:01:29]} 30. Rb1 {[%clk 0:00:04]}  Rc3+ {[%clk 0:01:28]} 31. Kf2 {[%clk 0:00:04]}  Nd3+ {[%clk 0:01:18]} 32. Kg2 {[%clk 0:00:04]}  Rc2+ {[%clk 0:01:15]} 33. Kf3 {[%clk 0:00:04]}  Ne5+ {[%clk 0:01:13]} 34. Ke3 {[%clk 0:00:03]}  Rc3+ {[%clk 0:01:12]} 35. Kf2 {[%clk 0:00:03]}  Rc2+ {[%clk 0:01:09]} 36. Ke3 {[%clk 0:00:03]}  Rg2 {[%clk 0:01:08]} 37. g4 {[%clk 0:00:01]}  Rg3+ {[%clk 0:01:08]} 38. Ke2 {[%clk 0:00:01]}  Rxh3 {[%clk 0:01:07]} 39. Rc1 {[%clk 0:00:01]}  Rxb3 {[%clk 0:01:02]} 40. Rc7+ {[%clk 0:00:01]}  Nd7 {[%clk 0:00:56]} 0-1


[Site "https://www.chess.com"]

[Event "Titled Tuesday Blitz March 28 Late 2023"]
[White "Ozalp, Burak"]
[Black "ritanovikova"]
[WhiteFideId "6314210"]
[WhiteElo "2106"]
[BlackElo "2218"]
[Result "0-1"]
[Round "05"]
[TimeControl "180+2"]
[Date "2023.03.28"]
[WhiteClock "0:00:11"]
[BlackClock "0:01:01"]

1. Nf3 {[%clk 0:03:00]}  Nf6 {[%clk 0:02:56]} 2. c4 {[%clk 0:02:57]}  e6 {[%clk 0:02:56]} 3. g3 {[%clk 0:02:57]}  Bc5 {[%clk 0:02:55]} 4. Bg2 {[%clk 0:02:55]}  d5 {[%clk 0:02:54]} 5. b3 {[%clk 0:02:54]}  O-O {[%clk 0:02:49]} 6. Bb2 {[%clk 0:02:50]}  c6 {[%clk 0:02:49]} 7. O-O {[%clk 0:02:49]}  Nbd7 {[%clk 0:02:45]} 8. d4 {[%clk 0:02:37]}  Be7 {[%clk 0:02:44]} 9. Nbd2 {[%clk 0:02:36]}  Ne4 {[%clk 0:02:41]} 10. Rc1 {[%clk 0:02:08]}  Ndf6 {[%clk 0:02:40]} 11. Ne5 {[%clk 0:01:57]}  Nxd2 {[%clk 0:02:37]} 12. Qxd2 {[%clk 0:01:56]}  Nd7 {[%clk 0:02:25]} 13. Nxd7 {[%clk 0:01:56]}  Bxd7 {[%clk 0:02:24]} 14. e4 {[%clk 0:01:56]}  dxe4 {[%clk 0:02:23]} 15. Bxe4 {[%clk 0:01:54]}  Bf6 {[%clk 0:02:21]} 16. Rfd1 {[%clk 0:01:53]}  g6 {[%clk 0:02:20]} 17. d5 {[%clk 0:01:50]}  exd5 {[%clk 0:02:12]} 18. cxd5 {[%clk 0:01:46]}  cxd5 {[%clk 0:02:07]} 19. Bxd5 {[%clk 0:01:39]}  Rb8 {[%clk 0:01:52]} 20. Ba3 {[%clk 0:01:31]}  Be7 {[%clk 0:01:42]} 21. Bb2 {[%clk 0:01:25]}  Bf6 {[%clk 0:01:42]} 22. Bc4 {[%clk 0:01:08]}  Bc6 {[%clk 0:01:36]} 23. Qf4 {[%clk 0:00:58]}  Qxd1+ {[%clk 0:01:25]} 24. Rxd1 {[%clk 0:00:57]}  Bxb2 {[%clk 0:01:26]} 25. h4 {[%clk 0:00:46]}  Rbd8 {[%clk 0:01:20]} 26. Rxd8 {[%clk 0:00:23]}  Rxd8 {[%clk 0:01:20]} 27. Qxf7+ {[%clk 0:00:23]}  Kh8 {[%clk 0:01:21]} 28. Kh2 {[%clk 0:00:21]}  Bg7 {[%clk 0:01:19]} 29. g4 {[%clk 0:00:17]}  Rf8 {[%clk 0:01:19]} 30. Qe7 {[%clk 0:00:10]}  Rxf2+ {[%clk 0:01:19]} 31. Kg3 {[%clk 0:00:11]}  Rf8 {[%clk 0:01:16]} 32. h5 {[%clk 0:00:09]}  Re8 {[%clk 0:01:13]} 33. Qc7 {[%clk 0:00:07]}  Be5+ {[%clk 0:01:13]} 34. Qxe5+ {[%clk 0:00:07]}  Rxe5 {[%clk 0:01:14]} 35. h6 {[%clk 0:00:08]}  b5 {[%clk 0:01:12]} 36. Bf7 {[%clk 0:00:07]}  Re2 {[%clk 0:01:10]} 37. Kh4 {[%clk 0:00:07]}  Rxa2 {[%clk 0:01:08]} 38. b4 {[%clk 0:00:07]}  Rb2 {[%clk 0:01:07]} 39. Kg5 {[%clk 0:00:07]}  Rxb4 {[%clk 0:01:07]} 40. Bxg6 {[%clk 0:00:07]}  hxg6 {[%clk 0:01:06]} 41. h7 {[%clk 0:00:08]}  Bd7 {[%clk 0:01:06]} 42. Kh6 {[%clk 0:00:09]}  Bxg4 {[%clk 0:01:03]} 43. Kg5 {[%clk 0:00:09]}  Bh5 {[%clk 0:01:02]} 44. Kh6 {[%clk 0:00:09]}  Rc4 {[%clk 0:01:02]} 45. Kg5 {[%clk 0:00:09]}  b4 {[%clk 0:01:02]} 46. Kh6 {[%clk 0:00:10]}  b3 {[%clk 0:01:02]} 47. Kg5 {[%clk 0:00:11]}  b2 {[%clk 0:01:03]} 48. Kh6 {[%clk 0:00:11]}  b1=Q {[%clk 0:01:01]} 0-1


[Site "https://www.chess.com"]

[Event "Titled Tuesday Blitz March 28 Late 2023"]
[White "Dahlgren, James Allen"]
[Black "Kielinkei"]
[WhiteFideId "22256873"]
[WhiteElo "2212"]
[BlackElo "2392"]
[Result "0-1"]
[Round "05"]
[TimeControl "180+2"]
[Date "2023.03.28"]
[WhiteClock "0:00:05"]
[BlackClock "0:00:06"]

1. e4 {[%clk 0:03:00]}  c6 {[%clk 0:02:59]} 2. Nc3 {[%clk 0:03:00]}  d5 {[%clk 0:02:59]} 3. f3 {[%clk 0:02:58]}  e5 {[%clk 0:02:53]} 4. d4 {[%clk 0:02:54]}  dxe4 {[%clk 0:02:49]} 5. dxe5 {[%clk 0:02:53]}  Qxd1+ {[%clk 0:02:44]} 6. Kxd1 {[%clk 0:02:54]}  exf3 {[%clk 0:02:43]} 7. Nxf3 {[%clk 0:02:55]}  Ne7 {[%clk 0:02:32]} 8. Bf4 {[%clk 0:02:52]}  Ng6 {[%clk 0:02:32]} 9. Bg3 {[%clk 0:02:52]}  h5 {[%clk 0:02:28]} 10. h3 {[%clk 0:02:48]}  h4 {[%clk 0:02:24]} 11. Bh2 {[%clk 0:02:48]}  Bf5 {[%clk 0:02:24]} 12. Bd3 {[%clk 0:02:44]}  Bxd3 {[%clk 0:02:20]} 13. cxd3 {[%clk 0:02:45]}  Nd7 {[%clk 0:02:20]} 14. Re1 {[%clk 0:02:42]}  Nc5 {[%clk 0:02:13]} 15. Kc2 {[%clk 0:02:36]}  O-O-O {[%clk 0:02:08]} 16. d4 {[%clk 0:02:35]}  Ne6 {[%clk 0:02:08]} 17. Rad1 {[%clk 0:02:34]}  Ngf4 {[%clk 0:02:03]} 18. Rd2 {[%clk 0:02:26]}  Be7 {[%clk 0:02:00]} 19. Re4 {[%clk 0:02:23]}  g5 {[%clk 0:01:56]} 20. a3 {[%clk 0:02:15]}  Rd7 {[%clk 0:01:47]} 21. b4 {[%clk 0:02:13]}  Rhd8 {[%clk 0:01:47]} 22. Ne2 {[%clk 0:01:54]}  Nxe2 {[%clk 0:01:42]} 23. Rdxe2 {[%clk 0:01:41]}  Nxd4+ {[%clk 0:01:41]} 24. Nxd4 {[%clk 0:01:40]}  Rxd4 {[%clk 0:01:42]} 25. Rxd4 {[%clk 0:01:40]}  Rxd4 {[%clk 0:01:43]} 26. e6 {[%clk 0:01:40]}  f6 {[%clk 0:01:40]} 27. Rd2 {[%clk 0:01:35]}  Re4 {[%clk 0:01:18]} 28. Rd7 {[%clk 0:01:34]}  Rxe6 {[%clk 0:01:16]} 29. Rc7+ {[%clk 0:01:34]}  Kd8 {[%clk 0:01:16]} 30. Rxb7 {[%clk 0:01:34]}  c5 {[%clk 0:01:10]} 31. b5 {[%clk 0:01:10]}  Re2+ {[%clk 0:01:06]} 32. Kd3 {[%clk 0:01:11]}  Rxg2 {[%clk 0:01:06]} 33. Rb8+ {[%clk 0:01:10]}  Kd7 {[%clk 0:01:06]} 34. Rb7+ {[%clk 0:01:10]}  Ke6 {[%clk 0:01:04]} 35. Bb8 {[%clk 0:01:09]}  Ra2 {[%clk 0:00:37]} 36. Rxa7 {[%clk 0:01:07]}  Rxa3+ {[%clk 0:00:36]} 37. Rxa3 {[%clk 0:01:03]}  c4+ {[%clk 0:00:36]} 38. Kxc4 {[%clk 0:01:03]}  Bxa3 {[%clk 0:00:36]} 39. b6 {[%clk 0:00:51]}  Kd7 {[%clk 0:00:35]} 40. Kd5 {[%clk 0:00:50]}  Kc8 {[%clk 0:00:28]} 41. Bc7 {[%clk 0:00:44]}  Kb7 {[%clk 0:00:21]} 42. Bd8 {[%clk 0:00:41]}  Bb2 {[%clk 0:00:09]} 43. Ke6 {[%clk 0:00:38]}  g4 {[%clk 0:00:09]} 44. hxg4 {[%clk 0:00:35]}  h3 {[%clk 0:00:09]} 45. g5 {[%clk 0:00:26]}  h2 {[%clk 0:00:06]} 46. gxf6 {[%clk 0:00:23]}  h1=Q {[%clk 0:00:07]} 47. Be7 {[%clk 0:00:09]}  Qe4+ {[%clk 0:00:05]} 48. Kf7 {[%clk 0:00:09]}  Qh7+ {[%clk 0:00:05]} 49. Kf8 {[%clk 0:00:08]}  Qh8+ {[%clk 0:00:04]} 50. Kf7 {[%clk 0:00:08]}  Bxf6 {[%clk 0:00:04]} 51. Bxf6 {[%clk 0:00:08]}  Qc8 {[%clk 0:00:05]} 52. Ke7 {[%clk 0:00:06]}  Kxb6 {[%clk 0:00:05]} 53. Be5 {[%clk 0:00:06]}  Kc6 {[%clk 0:00:06]} 54. Bf6 {[%clk 0:00:05]}  Qd7+ {[%clk 0:00:06]} 0-1


[Site "https://www.chess.com"]